Cogmind - Beta 14 @@@ ROGUE MODE // 2024.11.20 @ 19:34:20 Player: Shimmyarah Result: Destroyed by P5-IC8(R) with Subdweller Shrapnel Launcher Performance ------------- Evolutions (0) 0 Regions Visited (2) 400 Robots Destroyed (28) 140 Value Destroyed (564) 564 Prototype IDs (11) 220 Alien Tech Used (0) 0 Bonus (0) 0 TOTAL SCORE: 1324 Bonus ------- None Cogmind --------- Core Integrity 0/250 Matter 175/300 Energy 247/250 System Corruption 0% Temperature Cool (0) Movement Treading (320) Ox2 Location -10/Subcaves Parts ------- > --- POWER (1) -------- Ion Engine > --- PROPULSION (2) --- Improved Treads Improved Treads > --- UTILITY (2) ------ Huge Storage Unit Light Armor Plating > --- WEAPON (2) ------- Subdweller Machine Gun Light Cannon > --- INVENTORY (25) --- Subdweller Power Source Wheel Wheel Wheel Flightbrick Weight Redist. System Structural Scanner Improved Terrain Scanner Seismic Detector Targeting Computer Field Recycling Unit (0) Rainbow Chip Riot Gun Particle Gun Light Cannon Light Cannon Light Cannon Grenade Launcher Datajack Mining Laser Flamer Enhanced Flamer Peak State ------------ > --- POWER ------------ Ion Engine > --- PROPULSION ------- Improved Treads Improved Treads > --- UTILITY ---------- Huge Storage Unit Light Armor Plating > --- WEAPON ----------- Subdweller Machine Gun Mining Laser > --- INVENTORY -------- Subdweller Power Source Wheel Wheel Wheel Flightbrick Weight Redist. System Structural Scanner Improved Terrain Scanner Seismic Detector Targeting Computer Field Recycling Unit Rainbow Chip Riot Gun Particle Gun Light Cannon Light Cannon Light Cannon Light Cannon Grenade Launcher Datajack Flamer Enhanced Flamer [Rating: 18] Favorites ----------- Power Ion Engine Engine Ion Engine Propulsion Improved Treads Treads Improved Treads Leg Aluminum Leg Wheel Wheel Utility Huge Storage Unit Device Seismic Detector Storage Huge Storage Unit Protection Weapon Shielding Weapon Assault Rifle Ballistic Gun Assault Rifle Ballistic Cannon Light Cannon Special Weapon Mining Laser Build | -11 -10 -10 ------- Run | Yrd Mat Sub Slots Evolved . | . . . Power . | . . . Propulsion . | . . . Utility . | . . . Weapon . | . . . Parts Attached 39 | 1 14 24 Power 2 | . 1 1 Engine 2 | . 1 1 Core . | . . . Reactor . | . . . Propulsion 16 | . 6 10 Treads 8 | . 2 6 Leg . | . . . Wheel 8 | . 4 4 Hover . | . . . Flight . | . . . Utility 10 | 1 4 5 Device 4 | 1 1 2 Storage 2 | . 2 . Processor . | . . . Hackware . | . . . Protection 4 | . 1 3 Artifact . | . . . Weapon 11 | . 3 8 Energy Gun . | . . . Energy Cannon . | . . . Ballistic Gun 3 | . 2 1 Ballistic Cannon 4 | . . 4 Launcher . | . . . Special Weapon 4 | . 1 3 Impact Weapon . | . . . Slashing Weapon . | . . . Piercing Weapon . | . . . Special Melee Weapon . | . . . Unidentified Prototypes . | . . . Parts Lost 3 | . 1 2 Power 1 | . . 1 Propulsion . | . . . Utility 1 | . 1 . Weapon 1 | . . 1 Highest Loss Streak 2 | . 1 2 To Critical Strikes . | . . . Average Slot Usage (%) 98 | . 96 99 Engine 13 | . 14 13 Treads 16 | . 5 23 Leg 4 | . 11 . Wheel 6 | . 11 4 Device 5 | . 1 8 Storage 14 | . 14 14 Protection 6 | . 8 5 Ballistic Gun 15 | . 27 7 Ballistic Cannon 9 | . . 15 Special Weapon 3 | . . 5 Peak Build Rating 18 | 8 10 18 Average Rating 11 | 6 8 14 On Entrance 8 | 6 8 10 Naked Turns . | . . . Heaviest Build 95 | 14 90 95 Greatest Support 46 | 20 40 46 Greatest Overweight (x) 9 | . 4 9 Average Overweight (x) 2 | . 1 3 Largest Inventory Capacity 25 | 8 25 25 Average Capacity 21 | 8 18 25 Most Carried 25 | 8 25 25 Average Carried 20 | 6 16 24 Final Capacity 25 | 8 25 25 Final Carried 25 | 8 24 25 Class Distribution -------------------- 100% | Mutant Dominant Class ---------------- Mutant | -10/Materials Mutant | -10/Subcaves Resources | -11 -10 -10 ----------- Run | Yrd Mat Sub Matter Collected 1138 | 266 426 446 Remotely . | . . . Salvage Created 818 | 162 464 192 Parts 70 | 15 37 18 Haulers Intercepted 1 | . 1 . Recyclers Shooed 2 | . 2 . Parts Field Recycled . | . . . Retrieved Matter . | . . . Parts Self-Destructed 14 | . . 14 Prevented . | . . . Kills | -11 -10 -10 ------- Run | Yrd Mat Sub Combat Hostiles Destroyed 17 | . 9 8 Guns 12 | . 9 3 Cannons 5 | . . 5 Classes Destroyed 9 | 3 5 1 Worker 2 | 2 . . Builder 1 | . 1 . Tunneler 3 | 3 . . Hauler 1 | . 1 . Recycler 2 | 1 1 . Watcher 2 | . 2 . Swarmer 6 | . 3 3 Grunt 6 | . 6 . Subdweller 5 | . . 5 Best Kill Streak 4 | 2 4 3 Combat Bots Only 3 | . 3 3 Max Kills in Single Turn 2 | 1 2 1 Gunslinging 1 | . 1 . Exploded . | . . . Melee . | . . . Uniques/NPCs Destroyed . | . . . Combat | -11 -10 -10 -------- Run | Yrd Mat Sub Hostile Shots Fired 136 | . 64 72 Missed 32 | . 15 17 Damage Taken 1436 | . 583 853 Core 293 | . 75 218 Absorbed by Shields . | . . . Redirected to Shielding 51 | . 51 . Core Remaining (%) 100 | 100 . . Volleys Fired 137 | 34 52 51 Largest 2 | 2 2 2 Hottest 130 | 40 100 130 Shots Fired 261 | 68 103 90 Gun 204 | 68 102 34 Cannon 42 | . . 42 Launcher . | . . . Special 15 | . 1 14 Kinetic 246 | 68 102 76 Thermal 15 | . 1 14 Explosive . | . . . Electromagnetic . | . . . Robot Hit Streak 19 | 5 19 11 Robot Miss Streak 10 | 10 5 2 Penetration Max . | . . . Secondary Targets 3 | . 3 . Max Gunslinging Chain 1 | . 1 . Shots Hit Robots 123 | 30 57 36 Core Hits 47 | 9 26 12 Critical Kills . | . . . Critical Parts Destroyed . | . . . Critical Strikes . | . . . Melee Attacks . | . . . Impact . | . . . Slashing . | . . . Piercing . | . . . Sneak Attacks . | . . . Combat Hostiles . | . . . Follow-up Attacks . | . . . Damage Inflicted 1565 | 287 654 624 Guns 1228 | 287 654 287 Cannons 337 | . . 337 Explosions . | . . . Melee . | . . . Ramming . | . . . Kinetic 1565 | 287 654 624 Thermal . | . . . Explosive . | . . . Electromagnetic . | . . . Impact . | . . . Slashing . | . . . Piercing . | . . . Highest Corruption . | . . . Average Corruption . | . . . Corruption Purged . | . . . Corruption Blocked . | . . . Overload Shots . | . . . Overflow Damage . | . . . Projectiles . | . . . Explosions . | . . . Melee . | . . . Knockbacks 6 | . . 6 Impact . | . . . Kinetic 6 | . . 6 Secondary . | . . . Self-Inflicted Damage . | . . . Shots . | . . . Rammed . | . . . Targets Rammed . | . . . Kicked . | . . . Crushed . | . . . Highest Temperature 20 | . 20 . Average Temperature 5 | . 5 . Received Heat Transfer 297 | . 279 18 Siege Activations . | . . . Robots Corrupted . | . . . Combat Hostiles . | . . . Parts Fried . | . . . Impact Corruptions . | . . . Robots Melted . | . . . Combat Hostiles . | . . . Parts Melted . | . . . Heat Transferred . | . . . Parts Sabotaged . | . . . Parts Stolen . | . . . Parts Stripped . | . . . Power Chain Reactions . | . . . Alert | -11 -10 -10 ------- Run | Yrd Mat Sub Peak Influence 235 | 30 235 . Initial 19 | . 19 . Average 88 | 15 100 . Maximum Alert Level 1 | . 1 . Low Security (%) 88 | 100 86 . Level 1 11 | . 13 . Level 2 . | . . . Level 3 . | . . . Level 4 . | . . . Level 5 . | . . . High Security . | . . . Max Security . | . . . Squads Dispatched 1 | . 1 . Investigation 1 | . 1 . Extermination . | . . . Reinforcement . | . . . Assault . | . . . Garrison . | . . . Intercept . | . . . Searches Triggered . | . . . Construction Impeded . | . . . Haulers Reinforced . | . . . Active Scanning Responses . | . . . Cargo Convoy Interrupts . | . . . Stealth | -11 -10 -10 --------- Run | Yrd Mat Sub Distress Signals . | . . . Communications Jammed . | . . . Distress Signals . | . . . Times Spotted 24 | . 15 9 Peak Tracking Total 5 | . 5 3 Tactical Retreats 1 | . 1 . Traps | -11 -10 -10 ------- Run | Yrd Mat Sub Traps Triggered 1 | . 1 . Indirectly . | . . . Trap Hack Attempts . | . . . Triggered . | . . . Disarmed . | . . . Reprogrammed . | . . . Reused . | . . . Traps Extracted . | . . . Installed . | . . . Triggered . | . . . Machines | -11 -10 -10 ---------- Run | Yrd Mat Sub Machines Disabled 1 | . . 1 Max in Single Turn 1 | . . 1 Machines Repaired . | . . . Machines Dismantled . | . . . Machines Sabotaged . | . . . Overloaded Fab Kills . | . . . Hacking | -11 -10 -10 --------- Run | Yrd Mat Sub Machines Accessed 8 | . 7 1 Terminals 7 | . 7 . Fabricators . | . . . Repair Stations . | . . . Recycling Units . | . . . Scanalyzers . | . . . Garrison Access . | . . . Total Hacks 35 | . 26 9 Successful 22 | . 13 9 Failed 13 | . 13 . Catastrophic . | . . . Database Lockouts . | . . . Manual 22 | . 22 . Terminals 26 | . 26 . Fabricators . | . . . Repair Stations . | . . . Recycling Units . | . . . Scanalyzers . | . . . Garrison Access . | . . . Terminal Hacks 12 | . 3 9 Record 8 | . . 8 Part Schematic 1 | . 1 . Zone Layout 2 | . 2 . Derelict Proto ID Bank 1 | . . 1 Fabricator Hacks . | . . . Repair Station Hacks . | . . . Recycling Unit Hacks . | . . . Scanalyzer . | . . . Garrison Access Hacks . | . . . Unauthorized Hacks 10 | . 10 . Terminals 10 | . 10 . Botnet 5 | . 5 . Skim 5 | . 5 . Fabricators . | . . . Repair Stations . | . . . Recycling Units . | . . . Scanalyzers . | . . . Garrison Access . | . . . Data Cores Recovered . | . . . Used . | . . . Hacking Detections 7 | . 7 . Full Trace Events . | . . . Feedback Events . | . . . Feedback Blocked . | . . . Robot Schematics Acquired . | . . . Robots Built . | . . . Authchips . | . . . Time . | . . . Total Robot Build Rating . | . . . Part Schematics Acquired 1 | . 1 . Parts Built . | . . . Authchips . | . . . Time . | . . . Total Part Build Rating . | . . . Parts Repaired . | . . . Time . | . . . Parts Recycled . | . . . Recycled Matter . | . . . Retrieved Matter . | . . . Retrieved Components . | . . . Parts Scanalyzed . | . . . Part Schematics Acquired . | . . . Parts Damaged . | . . . Bothacking | -11 -10 -10 ------------ Run | Yrd Mat Sub Used RIF Installer . | . . . Robots Hacked . | . . . Non-combat . | . . . Combat . | . . . Robot Hacks Applied . | . . . Relay Couplers Released . | . . . Fabnet Peak Effective % . | . . . Robots Rewired . | . . . Allies Hacked . | . . . Hacks Repelled . | . . . Allies | -11 -10 -10 -------- Run | Yrd Mat Sub Total Allies . | . . . Largest Group . | . . . Highest-Rated Group . | . . . Highest-Rated Ally . | . . . Total Orders . | . . . Ally Attacks . | . . . Total Damage . | . . . Kills . | . . . Allies Corrupted . | . . . Allies Melted . | . . . Intel | -11 -10 -10 ------- Run | Yrd Mat Sub Robot Analysis Total . | . . . Derelict Logs Recovered 1 | . . 1 Drone Launches . | . . . Drone Recoveries . | . . . Exploration | -11 -10 -10 ------------- Run | Yrd Mat Sub Turns Passed 2645 | 159 984 1502 Spaces Moved 1086 | 49 531 506 Core . | . . . Treads 367 | . 45 322 Legs 307 | 49 258 . Wheels 412 | . 228 184 Hover . | . . . Flight . | . . . Fastest Speed 120 | 120 120 140 Average Speed 191 | 120 145 246 Slowest Speed 320 | 120 320 320 Overloaded Moves . | . . . Propulsion Burnouts . | . . . Robots Hopped . | . . . Cave-ins Triggered . | . . . Exploration Rate (%) 40 | 6 81 33 Regions Visited 2 Branch Regions 1 Pre-discovered Areas . | . . . Known Exits Taken . | . . . Unknown Exits Taken 2 | 1 1 . Scrap Searched 3 | . . 3 Spaces Dug 1 | . 1 . Terrain Destroyed 1 | . 1 . Melee . | . . . Projectile 1 | . 1 . AOE . | . . . Terrain Rammed . | . . . Walls Destroyed . | . . . Machines Disabled . | . . . Actions | -11 -10 -10 --------- Run | Yrd Mat Sub Total 1368 | 88 637 643 Wait 49 | . 6 43 Move 1084 | 48 530 506 Hop . | . . . Pick Up 38 | 4 25 9 Fast Attach . | . . . Attach 5 | 1 1 3 Detach . | . . . Swap 34 | . 13 21 Drop 21 | 1 10 10 Fire 137 | 34 52 51 Melee . | . . . Ram . | . . . Kick . | . . . Crush . | . . . Escape Stasis . | . . . Rewire . | . . . Trap . | . . . Miscellaneous . | . . . Route ------- -11/Scrapyard -10/Materials (discovered 5 exits: [*Mat x3] / [*Min] / *Sub) -10/Subcaves History --------- Turn | Location | Event 43 | -11/Scrapyard | Discovered new exit (range 3) 160 | -11/Scrapyard | Entered Materials 308 | -10/Materials | Build established: Mutant 345 | -10/Materials | Discovered new exit (range 15) 503 | -10/Materials | Discovered new exit (range 7) 552 | -10/Materials | Discovered new exit (range 13) 771 | -10/Materials | Discovered new exit (range 13) 1132 | -10/Materials | Discovered new exit (range 8) 1133 | -10/Materials | Learned 2 Mines zone layouts 1144 | -10/Materials | Entered Subcaves 1145 | -10/Subcaves | Shifting Twisted Machinery released Enh. Flamer 1358 | -10/Subcaves | Shifting Twisted Machinery released Riot Gun 1385 | -10/Subcaves | Shifting Twisted Machinery released Flamer 1534 | -10/Subcaves | Shifting Twisted Machinery released Sub. Machine Gun 1747 | -10/Subcaves | Visited 4L-MR0's lab 1777 | -10/Subcaves | Found Rainbow Chip 1936 | -10/Subcaves | Learned Materials trap positions 1964 | -10/Subcaves | A Subdweller sparked back to life 1964 | -10/Subcaves | A Subdweller sparked back to life 1964 | -10/Subcaves | A Subdweller sparked back to life 1971 | -10/Subcaves | Core integrity fell below 50% 2007 | -10/Subcaves | Found Flightbrick 2570 | -10/Subcaves | Core integrity fell below 20% 2646 | -10/Subcaves | Destroyed by P5-IC8(R) with Subdweller Shrapnel Launcher Last Messages --------------- 02052_ Subatomizers dissect the Sub. Optics. 02081_ Acquired 5 matter. 02100_ Acquired 8 matter. 02115_ Acquired Wheel. 02118_ Dropped Wheel. 02160_ Acquired 43 matter. 02163_ Subatomizers dissect the Cobbler Unit. 02165_ Acquired 37 matter. 02173_ Subatomizers dissect the Cobbler Unit. 02196_ A5-TIC(R): "ECOKILL!" 02206_ A5-TIC(R) knocked back. 02212_ A5-TIC(R) destroyed. 02228_ Acquired 48 matter. 02295_ Acquired 5 matter. 02577_ OR-W62(R) knocked back. 02580_ OR-W62(R) destroyed. 02596_ Acquired 37 matter. 02602_ Acquired 2 matter. 02643_ P5-IC8(R) knocked back. Map ----- +----------------------------------------------------+ | ??## #????# ##### #?????????????????????? | | ### #???## #?????????????????????? | | ## #???# #?????????????????????? | | ##??## ###???????????????????????? | | ####??## #?????????????????????????? | | ##???## ##????????????????????????? | | ##### #######??????????????????? | | ## #??????????????????? | | ##### ### ###??????????????????? | | #???# ## ### ##??????##????????????? | | #??# ## #?############# #????????????? | | #?# #### #????## ## #????????????? | | ?# ## ##??# ##??##" #????????????? | | # ####??## #### " " #????????????? | | #?????# """" #????????????? | | #???# """ #????????????? | | ##???# # """"""" #????????????? | | #????# ## ### # "" #????????????? | | #??# #?# #### ###"" ##????????????? | | #?# ?# #?# #?##"" #?????????????? | | #? ? #?## "#??##" #?????????????? | | #? ? ??# ;####" #?????????????? | | #? "??#; ;;;; #?????????????? | | #?? ### ??#;& & " ##?????????????? | | ##?## #??# ???# = ! " #??????????????? | | ####??? #???# ???# @ ; " ##??????????????? | | #?????? ?????#????# ;;;# ####???????????????? | | #????????????????#;;R # ###??????????????????? | | # #???????????????##% ####????????????????????? | | ?####????????????????#;; #???????????????????????? | | ?????????????????????### ???????????????????????? | | ???????????????????????# #???????????????????????? | | ???????????????????????# ???????????????????????? | | ???????????????????????# ???????????????????????? | | ???????????????????????## ???????????????????????? | | ?????????????????????????#???????????????????????? | | ?????????????????????????????????????????????????? | | ?????????????????????????????????????????????????? | | #????????????????????????????????????????????????? | | #????????????????????????????????????????????????? | | ##???????????????????????????????????????????????? | | #???????????????????????????????????????????????? | | "#???????????????????????????????????????????????? | | ##??????????????????????????????????????????????? | | #????????????###???????????????????????????????? | | ###?????????## ##??????????????????????????????? | | #???####### ##?????????????????????????????? | | #??## #?????????????????????????????? | | """ #?## #??????????????????????????????? | | """#### # ##??????????????????????????????? | +----------------------------------------------------+ Best States ------------- Heat Dissipation 25 Energy Generation 10 Energy Capacity 250 Matter Stores 288 Matter Capacity 300 Sight Range 16 Terrain Scan Density 10 Armor Coverage 150 Weapon Shielding 33 Evasion (%) 55 Recoil Reduction 2 Item Schematics ----------------- Grenade Launcher | -10/Materials | Hacked Robot Schematics ------------------ None Fabricated ------------ Nothing Alien Tech Used ----------------- None Achievements -------------- None Challenges ------------ None Game ------ Seed WaveMobileAirjet Manual? 0 Play Time 00:20:12 Cumulative 67.9 hours Start 2024.11.20 @ 19:16:00 End 2024.11.20 @ 19:34:20 Sessions 1 Manual Loads 0 Difficulty Rogue Special Mode None Game No. 112 Rogue 112 Adventurer 0 Explorer 0 Win Type - Total 0 Types 0/0/0/0/0/0/0/0/0 Lore% 47 Gallery% 39 Achievement% 30 Wizard Run 0 Options --------- Layout 1 ASCII 0 Keyboard 0 Movement Mouse Keybinds 0 Fullscreen 1 Font 24/Smallcaps Map View 50x40 Zoom Use 0% Tactical HUD 1 Map Filters NONE Filters NONE Steam 1 RUN: 3aca7d99-9ca2-4a5d-b9dc-d9554a2ab2eb